Workbook

Sheet Supporting Data->
A1: Supporting Data
A2: • (Mason)Analysis (rev 7-26-2019)
A3: • (King) WRIA 10 Assessment
A4: • (King) WRIA 15 Assessment
A5: • (Thurston) WRIA 13 ByWSysClass
A6: • (Thurston) WRIA 14 Basin Foreca
A7: • (Kitsap) Sheet1
A8: • (Pierce) Growth Rates

Sheet (Mason)Analysis (rev 7-26-2019)
A1: County Areas/Component | B1: Units | C1: 2018 | D1: 2019 | E1: 2020 | F1: 2021 | G1: 2022 | H1: 2023 | I1: 2024 | J1: 2025 | K1: 2026 | L1: 2027 | M1: 2028 | N1: 2029 | O1: 2030 | P1: 2031 | Q1: 2032 | R1: 2033 | S1: 2034 | T1: 2035 | U1: 2036 | V1: 2037 | W1: 2038 | X1: Zoning Allocation | Y1: Source
A2: SHELTON UGA
A3: Population Projections from Plan | B3: People | C3: 4088 | D3: 4262 | E3: 4436 | F3: 4610 | G3: 4784 | H3: 4958 | I3: 5132 | J3: 5306 | K3: 5480 | L3: 5654 | M3: 5828 | N3: 6002 | O3: 6176 | P3: 6350 | Q3: 6524 | R3: 6698 | S3: 6872 | T3: 7046 | U3: 7220 | V3: 7394 | W3: 7568 | Y3: Mason County Plan 2036; Chapter 1
A4: Additional Population Capacity Projections since 2018 | B4: People | C4: 0 | D4: 174 | E4: 348 | F4: 522 | G4: 696 | H4: 870 | I4: 1044 | J4: 1218 | K4: 1392 | L4: 1566 | M4: 1740 | N4: 1914 | O4: 2088 | P4: 2262 | Q4: 2436 | R4: 2610 | S4: 2784 | T4: 2958 | U4: 3132 | V4: 3306 | W4: 3480 | Y4: Calculated
A5: Land Area from Plan | B5: Acres | C5: 5500 | D5: 5500 | E5: 5500 | F5: 5500 | G5: 5500 | H5: 5500 | I5: 5500 | J5: 5500 | K5: 5500 | L5: 5500 | M5: 5500 | N5: 5500 | O5: 5500 | P5: 5500 | Q5: 5500 | R5: 5500 | S5: 5500 | T5: 5500 | U5: 5500 | V5: 5500 | W5: 5500 | Y5: Mason County Plan 2036; Chapter 1
A6: Housing Projection from Plan | B6: Units | C6: 1925 | D6: 1970.833333 | E6: 2016.666667 | F6: 2062.5 | G6: 2108.333333 | H6: 2154.166667 | I6: 2200 | J6: 2245.833333 | K6: 2291.666667 | L6: 2337.5 | M6: 2383.333333 | N6: 2429.166667 | O6: 2475 | P6: 2520.833333 | Q6: 2566.666667 | R6: 2612.5 | S6: 2658.333333 | T6: 2704.166667 | U6: 2750 | V6: 2795.833333 | W6: 2841.666667 | Y6: Mason County Plan 2036; Table 5
A7: Housing Projection Based on Populaiton Projections from Plan and 2.57 Population per Household | B7: Units | C7: 1590.661479 | D7: 1658.365759 | E7: 1726.070039 | F7: 1793.774319 | G7: 1861.478599 | H7: 1929.182879 | I7: 1996.88716 | J7: 2064.59144 | K7: 2132.29572 | L7: 2200 | M7: 2267.70428 | N7: 2335.40856 | O7: 2403.11284 | P7: 2470.817121 | Q7: 2538.521401 | R7: 2606.225681 | S7: 2673.929961 | T7: 2741.634241 | U7: 2809.338521 | V7: 2877.042802 | W7: 2944.747082 | Y7: Calculated
A8: Additional Housing Capacity Projection since 2018 based on Plan Population | B8: Units | C8: 0 | D8: 67.70428016 | E8: 135.4085603 | F8: 203.1128405 | G8: 270.8171206 | H8: 338.5214008 | I8: 406.2256809 | J8: 473.9299611 | K8: 541.6342412 | L8: 609.3385214 | M8: 677.0428016 | N8: 744.7470817 | O8: 812.4513619 | P8: 880.155642 | Q8: 947.8599222 | R8: 1015.564202 | S8: 1083.268482 | T8: 1150.972763 | U8: 1218.677043 | V8: 1286.381323 | W8: 1354.085603 | X8: 1 | Y8: Calculated
A9: ZONING: Airport Industrial (AI) | B9: Units | C9: 0 | D9: 0 | E9: 0 | F9: 0 | G9: 0 | H9: 0 | I9: 0 | J9: 0 | K9: 0 | L9: 0 | M9: 0 | N9: 0 | O9: 0 | P9: 0 | Q9: 0 | R9: 0 | S9: 0 | T9: 0 | U9: 0 | V9: 0 | W9: 0 | X9: 0 | Y9: Mason County Plan 2036; Table 13 - Shelton UGA Zoning
A10: ZONING: Commercial Industrial (CI) | B10: Units | C10: 0 | D10: 0 | E10: 0 | F10: 0 | G10: 0 | H10: 0 | I10: 0 | J10: 0 | K10: 0 | L10: 0 | M10: 0 | N10: 0 | O10: 0 | P10: 0 | Q10: 0 | R10: 0 | S10: 0 | T10: 0 | U10: 0 | V10: 0 | W10: 0 | X10: 0 | Y10: Mason County Plan 2036; Table 13 - Shelton UGA Zoning
A11: ZONING: General Commercial (GC) | B11: Units | C11: 0 | D11: 0 | E11: 0 | F11: 0 | G11: 0 | H11: 0 | I11: 0 | J11: 0 | K11: 0 | L11: 0 | M11: 0 | N11: 0 | O11: 0 | P11: 0 | Q11: 0 | R11: 0 | S11: 0 | T11: 0 | U11: 0 | V11: 0 | W11: 0 | X11: 0 | Y11: Mason County Plan 2036; Table 13 - Shelton UGA Zoning
A12: ZONING: Industrial (I) | B12: Units | C12: 0 | D12: 0 | E12: 0 | F12: 0 | G12: 0 | H12: 0 | I12: 0 | J12: 0 | K12: 0 | L12: 0 | M12: 0 | N12: 0 | O12: 0 | P12: 0 | Q12: 0 | R12: 0 | S12: 0 | T12: 0 | U12: 0 | V12: 0 | W12: 0 | X12: 0 | Y12: Mason County Plan 2036; Table 13 - Shelton UGA Zoning
A13: ZONING: Mixed Use (MU) | B13: Units | C13: 0 | D13: 14.99490769 | E13: 29.98981537 | F13: 44.98472306 | G13: 59.97963074 | H13: 74.97453843 | I13: 89.96944611 | J13: 104.9643538 | K13: 119.9592615 | L13: 134.9541692 | M13: 149.9490769 | N13: 164.9439845 | O13: 179.9388922 | P13: 194.9337999 | Q13: 209.9287076 | R13: 224.9236153 | S13: 239.918523 | T13: 254.9134307 | U13: 269.9083383 | V13: 284.903246 | W13: 299.8981537 | X13: 0.2214765101 | Y13: Mason County Plan 2036; Table 13 - Shelton UGA Zoning
A14: ZONING: Neighborhood Residential (NR) | B14: Units | C14: 0 | D14: 52.70937247 | E14: 105.4187449 | F14: 158.1281174 | G14: 210.8374899 | H14: 263.5468624 | I14: 316.2562348 | J14: 368.9656073 | K14: 421.6749798 | L14: 474.3843522 | M14: 527.0937247 | N14: 579.8030972 | O14: 632.5124696 | P14: 685.2218421 | Q14: 737.9312146 | R14: 790.6405871 | S14: 843.3499595 | T14: 896.059332 | U14: 948.7687045 | V14: 1001.478077 | W14: 1054.187449 | X14: 0.7785234899 | Y14: Mason County Plan 2036; Table 13 - Shelton UGA Zoning
A15: ZONING: Public Institutional (PI) | B15: Units | C15: 0 | D15: 0 | E15: 0 | F15: 0 | G15: 0 | H15: 0 | I15: 0 | J15: 0 | K15: 0 | L15: 0 | M15: 0 | N15: 0 | O15: 0 | P15: 0 | Q15: 0 | R15: 0 | S15: 0 | T15: 0 | U15: 0 | V15: 0 | W15: 0 | X15: 0 | Y15: Mason County Plan 2036; Table 13 - Shelton UGA Zoning
A16: Population Per Household | B16: Pop./Unit | C16: 2.57 | D16: 2.57 | E16: 2.57 | F16: 2.57 | G16: 2.57 | H16: 2.57 | I16: 2.57 | J16: 2.57 | K16: 2.57 | L16: 2.57 | M16: 2.57 | N16: 2.57 | O16: 2.57 | P16: 2.57 | Q16: 2.57 | R16: 2.57 | S16: 2.57 | T16: 2.57 | U16: 2.57 | V16: 2.57 | W16: 2.57 | Y16: Provided to HDR
A17: Population Per Household Calculated from Plan Data | B17: Pop./Unit | C17: 2.123636364 | D17: 2.162536998 | E17: 2.199669421 | F17: 2.235151515 | G17: 2.269090909 | H17: 2.301586074 | I17: 2.332727273 | J17: 2.362597403 | K17: 2.391272727 | L17: 2.418823529 | M17: 2.445314685 | N17: 2.470806175 | O17: 2.495353535 | P17: 2.519008264 | Q17: 2.541818182 | R17: 2.563827751 | S17: 2.58507837 | T17: 2.605608629 | U17: 2.625454545 | V17: 2.644649776 | W17: 2.663225806 | Y17: Calculated
A18: ALLYN UGA
A19: Population Projections from Plan | B19: People | C19: 903.7142857 | D19: 928.4285714 | E19: 953.1428571 | F19: 977.8571429 | G19: 1002.571429 | H19: 1027.285714 | I19: 1052 | J19: 1076.714286 | K19: 1101.428571 | L19: 1126.142857 | M19: 1150.857143 | N19: 1175.571429 | O19: 1200.285714 | P19: 1225 | Q19: 1249.714286 | R19: 1274.428571 | S19: 1299.142857 | T19: 1323.857143 | U19: 1348.571429 | V19: 1373.285714 | W19: 1398 | Y19: Mason County Plan 2036; Chapter 1
A20: Additional Population Capacity Projections since 2018 | B20: People | C20: 0 | D20: 24.71428571 | E20: 49.42857143 | F20: 74.14285714 | G20: 98.85714286 | H20: 123.5714286 | I20: 148.2857143 | J20: 173 | K20: 197.7142857 | L20: 222.4285714 | M20: 247.1428571 | N20: 271.8571429 | O20: 296.5714286 | P20: 321.2857143 | Q20: 346 | R20: 370.7142857 | S20: 395.4285714 | T20: 420.1428571 | U20: 444.8571429 | V20: 469.5714286 | W20: 494.2857143 | Y20: Calculated
A21: Land Area from Plan | B21: Acres | C21: 1000 | D21: 1000 | E21: 1000 | F21: 1000 | G21: 1000 | H21: 1000 | I21: 1000 | J21: 1000 | K21: 1000 | L21: 1000 | M21: 1000 | N21: 1000 | O21: 1000 | P21: 1000 | Q21: 1000 | R21: 1000 | S21: 1000 | T21: 1000 | U21: 1000 | V21: 1000 | W21: 1000 | Y21: Mason County Plan 2036; Chapter 1
A22: Housing Projection from Plan | B22: Units | C22: 350 | D22: 358.3333333 | E22: 366.6666667 | F22: 375 | G22: 383.3333333 | H22: 391.6666667 | I22: 400 | J22: 408.3333333 | K22: 416.6666667 | L22: 425 | M22: 433.3333333 | N22: 441.6666667 | O22: 450 | P22: 458.3333333 | Q22: 466.6666667 | R22: 475 | S22: 483.3333333 | T22: 491.6666667 | U22: 500 | V22: 508.3333333 | W22: 516.6666667 | Y22: Mason County Plan 2036; Table 5
A23: Housing Projection Based on Populaiton Projections from Plan and 2.57 Population per Household | B23: Units | C23: 351.6397999 | D23: 361.2562535 | E23: 370.8727071 | F23: 380.4891606 | G23: 390.1056142 | H23: 399.7220678 | I23: 409.3385214 | J23: 418.954975 | K23: 428.5714286 | L23: 438.1878822 | M23: 447.8043357 | N23: 457.4207893 | O23: 467.0372429 | P23: 476.6536965 | Q23: 486.2701501 | R23: 495.8866037 | S23: 505.5030573 | T23: 515.1195108 | U23: 524.7359644 | V23: 534.352418 | W23: 543.9688716 | Y23: Calculated
A24: Additional Housing Capacity Projection since 2018 based on Plan Population | B24: Units | C24: 0 | D24: 9.616453585 | E24: 19.23290717 | F24: 28.84936076 | G24: 38.46581434 | H24: 48.08226793 | I24: 57.69872151 | J24: 67.3151751 | K24: 76.93162868 | L24: 86.54808227 | M24: 96.16453585 | N24: 105.7809894 | O24: 115.397443 | P24: 125.0138966 | Q24: 134.6303502 | R24: 144.2468038 | S24: 153.8632574 | T24: 163.479711 | U24: 173.0961645 | V24: 182.7126181 | W24: 192.3290717 | X24: 1 | Y24: Calculated
A25: ZONING: Business Park (BP) | B25: Units | C25: 0 | D25: 0 | E25: 0 | F25: 0 | G25: 0 | H25: 0 | I25: 0 | J25: 0 | K25: 0 | L25: 0 | M25: 0 | N25: 0 | O25: 0 | P25: 0 | Q25: 0 | R25: 0 | S25: 0 | T25: 0 | U25: 0 | V25: 0 | W25: 0 | X25: 0 | Y25: Mason County Plan 2036; Table 11 - Allyn UGA Zoning
A26: ZONING: Highway Commercial (HC) | B26: Units | C26: 0 | D26: 0 | E26: 0 | F26: 0 | G26: 0 | H26: 0 | I26: 0 | J26: 0 | K26: 0 | L26: 0 | M26: 0 | N26: 0 | O26: 0 | P26: 0 | Q26: 0 | R26: 0 | S26: 0 | T26: 0 | U26: 0 | V26: 0 | W26: 0 | X26: 0 | Y26: Mason County Plan 2036; Table 11 - Allyn UGA Zoning
A27: ZONING: Public Open Space (POS) | B27: Units | C27: 0 | D27: 0 | E27: 0 | F27: 0 | G27: 0 | H27: 0 | I27: 0 | J27: 0 | K27: 0 | L27: 0 | M27: 0 | N27: 0 | O27: 0 | P27: 0 | Q27: 0 | R27: 0 | S27: 0 | T27: 0 | U27: 0 | V27: 0 | W27: 0 | X27: 0 | Y27: Mason County Plan 2036; Table 11 - Allyn UGA Zoning
A28: ZONING: Residential 1 (R-1) | B28: Units | C28: 0 | D28: 2.053482704 | E28: 4.106965408 | F28: 6.160448112 | G28: 8.213930816 | H28: 10.26741352 | I28: 12.32089622 | J28: 14.37437893 | K28: 16.42786163 | L28: 18.48134434 | M28: 20.53482704 | N28: 22.58830974 | O28: 24.64179245 | P28: 26.69527515 | Q28: 28.74875786 | R28: 30.80224056 | S28: 32.85572327 | T28: 34.90920597 | U28: 36.96268867 | V28: 39.01617138 | W28: 41.06965408 | X28: 0.2135384615 | Y28: Mason County Plan 2036; Table 11 - Allyn UGA Zoning
A29: ZONING: Residential 1 Platted (R-1P) | B29: Units | C29: 0 | D29: 1.59781075 | E29: 3.195621499 | F29: 4.793432249 | G29: 6.391242998 | H29: 7.989053748 | I29: 9.586864497 | J29: 11.18467525 | K29: 12.782486 | L29: 14.38029675 | M29: 15.9781075 | N29: 17.57591825 | O29: 19.17372899 | P29: 20.77153974 | Q29: 22.36935049 | R29: 23.96716124 | S29: 25.56497199 | T29: 27.16278274 | U29: 28.76059349 | V29: 30.35840424 | W29: 31.95621499 | X29: 0.1661538462 | Y29: Mason County Plan 2036; Table 11 - Allyn UGA Zoning
A30: ZONING: Residential 2 (R-2) | B30: Units | C30: 0 | D30: 0.1952879805 | E30: 0.390575961 | F30: 0.5858639415 | G30: 0.781151922 | H30: 0.9764399025 | I30: 1.171727883 | J30: 1.367015864 | K30: 1.562303844 | L30: 1.757591825 | M30: 1.952879805 | N30: 2.148167786 | O30: 2.343455766 | P30: 2.538743747 | Q30: 2.734031727 | R30: 2.929319708 | S30: 3.124607688 | T30: 3.319895669 | U30: 3.515183649 | V30: 3.71047163 | W30: 3.90575961 | X30: 0.02030769231 | Y30: Mason County Plan 2036; Table 11 - Allyn UGA Zoning
A31: ZONING: Residential 3 (R-3) | B31: Units | C31: 0 | D31: 4.450198828 | E31: 8.900397657 | F31: 13.35059649 | G31: 17.80079531 | H31: 22.25099414 | I31: 26.70119297 | J31: 31.1513918 | K31: 35.60159063 | L31: 40.05178946 | M31: 44.50198828 | N31: 48.95218711 | O31: 53.40238594 | P31: 57.85258477 | Q31: 62.3027836 | R31: 66.75298243 | S31: 71.20318125 | T31: 75.65338008 | U31: 80.10357891 | V31: 84.55377774 | W31: 89.00397657 | X31: 0.4627692308 | Y31: Mason County Plan 2036; Table 11 - Allyn UGA Zoning
A32: ZONING: Village Commercial (VC) | B32: Units | C32: 0 | D32: 0 | E32: 0 | F32: 0 | G32: 0 | H32: 0 | I32: 0 | J32: 0 | K32: 0 | L32: 0 | M32: 0 | N32: 0 | O32: 0 | P32: 0 | Q32: 0 | R32: 0 | S32: 0 | T32: 0 | U32: 0 | V32: 0 | W32: 0 | X32: 0 | Y32: Mason County Plan 2036; Table 11 - Allyn UGA Zoning
A33: ZONING: Residential 1 Recreational (R-1R) | B33: Units | C33: 0 | D33: 1.319673323 | E33: 2.639346646 | F33: 3.959019968 | G33: 5.278693291 | H33: 6.598366614 | I33: 7.918039937 | J33: 9.23771326 | K33: 10.55738658 | L33: 11.87705991 | M33: 13.19673323 | N33: 14.51640655 | O33: 15.83607987 | P33: 17.1557532 | Q33: 18.47542652 | R33: 19.79509984 | S33: 21.11477316 | T33: 22.43444649 | U33: 23.75411981 | V33: 25.07379313 | W33: 26.39346646 | X33: 0.1372307692 | Y33: Mason County Plan 2036; Table 11 - Allyn UGA Zoning
A34: Population Per Household | B34: Pop./Unit | C34: 2.57 | D34: 2.57 | E34: 2.57 | F34: 2.57 | G34: 2.57 | H34: 2.57 | I34: 2.57 | J34: 2.57 | K34: 2.57 | L34: 2.57 | M34: 2.57 | N34: 2.57 | O34: 2.57 | P34: 2.57 | Q34: 2.57 | R34: 2.57 | S34: 2.57 | T34: 2.57 | U34: 2.57 | V34: 2.57 | W34: 2.57 | Y34: Provided to HDR
A35: Population Per Household Calculated from Plan Data | B35: Pop./Unit | C35: 2.582040816 | D35: 2.590963455 | E35: 2.599480519 | F35: 2.607619048 | G35: 2.615403727 | H35: 2.622857143 | I35: 2.63 | J35: 2.636851312 | K35: 2.643428571 | L35: 2.649747899 | M35: 2.655824176 | N35: 2.661671159 | O35: 2.667301587 | P35: 2.672727273 | Q35: 2.677959184 | R35: 2.683007519 | S35: 2.687881773 | T35: 2.692590799 | U35: 2.697142857 | V35: 2.701545667 | W35: 2.705806452 | Y35: Calculated
A36: BELFAIR UGA
A37: Population Projections from Plan | B37: People | C37: 2259.285714 | D37: 2321.071429 | E37: 2382.857143 | F37: 2444.642857 | G37: 2506.428571 | H37: 2568.214286 | I37: 2630 | J37: 2691.785714 | K37: 2753.571429 | L37: 2815.357143 | M37: 2877.142857 | N37: 2938.928571 | O37: 3000.714286 | P37: 3062.5 | Q37: 3124.285714 | R37: 3186.071429 | S37: 3247.857143 | T37: 3309.642857 | U37: 3371.428571 | V37: 3433.214286 | W37: 3495 | Y37: Mason County Plan 2036; Chapter 1
A38: Additional Population Capacity Projections since 2018 | B38: People | C38: 0 | D38: 61.78571429 | E38: 123.5714286 | F38: 185.3571429 | G38: 247.1428571 | H38: 308.9285714 | I38: 370.7142857 | J38: 432.5 | K38: 494.2857143 | L38: 556.0714286 | M38: 617.8571429 | N38: 679.6428571 | O38: 741.4285714 | P38: 803.2142857 | Q38: 865 | R38: 926.7857143 | S38: 988.5714286 | T38: 1050.357143 | U38: 1112.142857 | V38: 1173.928571 | W38: 1235.714286 | Y38: Calculated
A39: Land Area from Plan | B39: Acres | C39: 2500 | D39: 2500 | E39: 2500 | F39: 2500 | G39: 2500 | H39: 2500 | I39: 2500 | J39: 2500 | K39: 2500 | L39: 2500 | M39: 2500 | N39: 2500 | O39: 2500 | P39: 2500 | Q39: 2500 | R39: 2500 | S39: 2500 | T39: 2500 | U39: 2500 | V39: 2500 | W39: 2500 | Y39: Mason County Plan 2036; Chapter 1
A40: Housing Projection from Plan | B40: Units | C40: 875 | D40: 895.8333333 | E40: 916.6666667 | F40: 937.5 | G40: 958.3333333 | H40: 979.1666667 | I40: 1000 | J40: 1020.833333 | K40: 1041.666667 | L40: 1062.5 | M40: 1083.333333 | N40: 1104.166667 | O40: 1125 | P40: 1145.833333 | Q40: 1166.666667 | R40: 1187.5 | S40: 1208.333333 | T40: 1229.166667 | U40: 1250 | V40: 1270.833333 | W40: 1291.666667 | Y40: Mason County Plan 2036; Table 5
A41: Housing Projection Based on Populaiton Projections from Plan and 2.57 Population per Household | B41: Units | C41: 879.0994997 | D41: 903.1406337 | E41: 927.1817676 | F41: 951.2229016 | G41: 975.2640356 | H41: 999.3051695 | I41: 1023.346304 | J41: 1047.387437 | K41: 1071.428571 | L41: 1095.469705 | M41: 1119.510839 | N41: 1143.551973 | O41: 1167.593107 | P41: 1191.634241 | Q41: 1215.675375 | R41: 1239.716509 | S41: 1263.757643 | T41: 1287.798777 | U41: 1311.839911 | V41: 1335.881045 | W41: 1359.922179 | Y41: Calculated
A42: Additional Housing Capacity Projection since 2018 based on Plan Population | B42: Units | C42: 0 | D42: 24.04113396 | E42: 48.08226793 | F42: 72.12340189 | G42: 96.16453585 | H42: 120.2056698 | I42: 144.2468038 | J42: 168.2879377 | K42: 192.3290717 | L42: 216.3702057 | M42: 240.4113396 | N42: 264.4524736 | O42: 288.4936076 | P42: 312.5347415 | Q42: 336.5758755 | R42: 360.6170094 | S42: 384.6581434 | T42: 408.6992774 | U42: 432.7404113 | V42: 456.7815453 | W42: 480.8226793 | X42: 1 | Y42: Calculated
A43: ZONING: Long Term Agriculture (LTA) | B43: Units | C43: 0 | D43: 0.003400924312 | E43: 0.006801848625 | F43: 0.01020277294 | G43: 0.01360369725 | H43: 0.01700462156 | I43: 0.02040554587 | J43: 0.02380647019 | K43: 0.0272073945 | L43: 0.03060831881 | M43: 0.03400924312 | N43: 0.03741016743 | O43: 0.04081109175 | P43: 0.04421201606 | Q43: 0.04761294037 | R43: 0.05101386468 | S43: 0.054414789 | T43: 0.05781571331 | U43: 0.06121663762 | V43: 0.06461756193 | W43: 0.06801848625 | X43: 0.0001414627246 | Y43: Mason County Plan 2036; Table 9 - Belfair UGA Zoning
A44: ZONING: Festival Retail (FR) | B44: Units | C44: 0 | D44: 0 | E44: 0 | F44: 0 | G44: 0 | H44: 0 | I44: 0 | J44: 0 | K44: 0 | L44: 0 | M44: 0 | N44: 0 | O44: 0 | P44: 0 | Q44: 0 | R44: 0 | S44: 0 | T44: 0 | U44: 0 | V44: 0 | W44: 0 | X44: 0 | Y44: Mason County Plan 2036; Table 9 - Belfair UGA Zoning
A45: ZONING: General Commercial (GC) | B45: Units | C45: 0 | D45: 0 | E45: 0 | F45: 0 | G45: 0 | H45: 0 | I45: 0 | J45: 0 | K45: 0 | L45: 0 | M45: 0 | N45: 0 | O45: 0 | P45: 0 | Q45: 0 | R45: 0 | S45: 0 | T45: 0 | U45: 0 | V45: 0 | W45: 0 | X45: 0 | Y45: Mason County Plan 2036; Table 9 - Belfair UGA Zoning
A46: ZONING: General Commercial Business Industrial (GC-BI) | B46: Units | C46: 0 | D46: 0 | E46: 0 | F46: 0 | G46: 0 | H46: 0 | I46: 0 | J46: 0 | K46: 0 | L46: 0 | M46: 0 | N46: 0 | O46: 0 | P46: 0 | Q46: 0 | R46: 0 | S46: 0 | T46: 0 | U46: 0 | V46: 0 | W46: 0 | X46: 0 | Y46: Mason County Plan 2036; Table 9 - Belfair UGA Zoning
A47: ZONING: Mixed Use (MU) | B47: Units | C47: 0 | D47: 2.676527434 | E47: 5.353054867 | F47: 8.029582301 | G47: 10.70610973 | H47: 13.38263717 | I47: 16.0591646 | J47: 18.73569204 | K47: 21.41221947 | L47: 24.0887469 | M47: 26.76527434 | N47: 29.44180177 | O47: 32.1183292 | P47: 34.79485664 | Q47: 37.47138407 | R47: 40.14791151 | S47: 42.82443894 | T47: 45.50096637 | U47: 48.17749381 | V47: 50.85402124 | W47: 53.53054867 | X47: 0.1113311642 | Y47: Mason County Plan 2036; Table 9 - Belfair UGA Zoning
A48: ZONING: Business Industrial (B-I) | B48: Units | C48: 0 | D48: 0 | E48: 0 | F48: 0 | G48: 0 | H48: 0 | I48: 0 | J48: 0 | K48: 0 | L48: 0 | M48: 0 | N48: 0 | O48: 0 | P48: 0 | Q48: 0 | R48: 0 | S48: 0 | T48: 0 | U48: 0 | V48: 0 | W48: 0 | X48: 0 | Y48: Mason County Plan 2036; Table 9 - Belfair UGA Zoning
A49: ZONING: Multi Family Residential (R-10) | B49: Units | C49: 0 | D49: 5.387064111 | E49: 10.77412822 | F49: 16.16119233 | G49: 21.54825644 | H49: 26.93532055 | I49: 32.32238466 | J49: 37.70944877 | K49: 43.09651288 | L49: 48.483577 | M49: 53.87064111 | N49: 59.25770522 | O49: 64.64476933 | P49: 70.03183344 | Q49: 75.41889755 | R49: 80.80596166 | S49: 86.19302577 | T49: 91.58008988 | U49: 96.96715399 | V49: 102.3542181 | W49: 107.7412822 | X49: 0.2240769557 | Y49: Mason County Plan 2036; Table 9 - Belfair UGA Zoning
A50: ZONING: Med. Density Residential (R-5) | B50: Units | C50: 0 | D50: 12.17530904 | E50: 24.35061808 | F50: 36.52592711 | G50: 48.70123615 | H50: 60.87654519 | I50: 73.05185423 | J50: 85.22716327 | K50: 97.4024723 | L50: 109.5777813 | M50: 121.7530904 | N50: 133.9283994 | O50: 146.1037085 | P50: 158.2790175 | Q50: 170.4543265 | R50: 182.6296356 | S50: 194.8049446 | T50: 206.9802536 | U50: 219.1555627 | V50: 231.3308717 | W50: 243.5061808 | X50: 0.506436554 | Y50: Mason County Plan 2036; Table 9 - Belfair UGA Zoning
A51: ZONING: Single Family Residential (R-4) | B51: Units | C51: 0 | D51: 3.798832457 | E51: 7.597664914 | F51: 11.39649737 | G51: 15.19532983 | H51: 18.99416228 | I51: 22.79299474 | J51: 26.5918272 | K51: 30.39065965 | L51: 34.18949211 | M51: 37.98832457 | N51: 41.78715702 | O51: 45.58598948 | P51: 49.38482194 | Q51: 53.1836544 | R51: 56.98248685 | S51: 60.78131931 | T51: 64.58015177 | U51: 68.37898422 | V51: 72.17781668 | W51: 75.97664914 | X51: 0.1580138633 | Y51: Mason County Plan 2036; Table 9 - Belfair UGA Zoning
A52: Population Per Household | B52: Pop./Unit | C52: 2.57 | D52: 2.57 | E52: 2.57 | F52: 2.57 | G52: 2.57 | H52: 2.57 | I52: 2.57 | J52: 2.57 | K52: 2.57 | L52: 2.57 | M52: 2.57 | N52: 2.57 | O52: 2.57 | P52: 2.57 | Q52: 2.57 | R52: 2.57 | S52: 2.57 | T52: 2.57 | U52: 2.57 | V52: 2.57 | W52: 2.57 | Y52: Provided to HDR
A53: Population Per Household Calculated from Plan Data | B53: Pop./Unit | C53: 2.582040816 | D53: 2.590963455 | E53: 2.599480519 | F53: 2.607619048 | G53: 2.615403727 | H53: 2.622857143 | I53: 2.63 | J53: 2.636851312 | K53: 2.643428571 | L53: 2.649747899 | M53: 2.655824176 | N53: 2.661671159 | O53: 2.667301587 | P53: 2.672727273 | Q53: 2.677959184 | R53: 2.683007519 | S53: 2.687881773 | T53: 2.692590799 | U53: 2.697142857 | V53: 2.701545667 | W53: 2.705806452 | Y53: Calculated
A54: RURAL COUNTY
A55: Population Projections from Plan | B55: People | C55: 46534 | D55: 47041 | E55: 47548 | F55: 48055 | G55: 48562 | H55: 49069 | I55: 49576 | J55: 50083 | K55: 50590 | L55: 51097 | M55: 51604 | N55: 52111 | O55: 52618 | P55: 53125 | Q55: 53632 | R55: 54139 | S55: 54646 | T55: 55153 | U55: 55660 | V55: 56167 | W55: 56674 | Y55: Mason County Plan 2036; Chapter 1
A56: Additional Population Capacity Projections since 2018 | B56: People | C56: 0 | D56: 507 | E56: 1014 | F56: 1521 | G56: 2028 | H56: 2535 | I56: 3042 | J56: 3549 | K56: 4056 | L56: 4563 | M56: 5070 | N56: 5577 | O56: 6084 | P56: 6591 | Q56: 7098 | R56: 7605 | S56: 8112 | T56: 8619 | U56: 9126 | V56: 9633 | W56: 10140 | Y56: Calculated
A57: Land Area from Plan | B57: Acres | C57: 387300 | D57: 387300 | E57: 387300 | F57: 387300 | G57: 387300 | H57: 387300 | I57: 387300 | J57: 387300 | K57: 387300 | L57: 387300 | M57: 387300 | N57: 387300 | O57: 387300 | P57: 387300 | Q57: 387300 | R57: 387300 | S57: 387300 | T57: 387300 | U57: 387300 | V57: 387300 | W57: 387300 | Y57: Mason County Plan 2036; Chapter 1
A58: Housing Projection from Plan | B58: Units | C58: 27300 | D58: 27700 | E58: 28100 | F58: 28500 | G58: 28900 | H58: 29300 | I58: 29700 | J58: 30100 | K58: 30500 | L58: 30900 | M58: 31300 | N58: 31700 | O58: 32100 | P58: 32500 | Q58: 32900 | R58: 33300 | S58: 33700 | T58: 34100 | U58: 34500 | V58: 34900 | W58: 35300 | Y58: Mason County Plan 2036; Table 5
A59: Housing Projection Based on Populaiton Projections from Plan and 2.57 Population per Household | B59: Units | C59: 18106.61479 | D59: 18303.89105 | E59: 18501.16732 | F59: 18698.44358 | G59: 18895.71984 | H59: 19092.99611 | I59: 19290.27237 | J59: 19487.54864 | K59: 19684.8249 | L59: 19882.10117 | M59: 20079.37743 | N59: 20276.6537 | O59: 20473.92996 | P59: 20671.20623 | Q59: 20868.48249 | R59: 21065.75875 | S59: 21263.03502 | T59: 21460.31128 | U59: 21657.58755 | V59: 21854.86381 | W59: 22052.14008 | Y59: Calculated
A60: Additional Housing Capacity Projection since 2018 based on Plan Population | B60: Units | C60: 0 | D60: 197.2762646 | E60: 394.5525292 | F60: 591.8287938 | G60: 789.1050584 | H60: 986.381323 | I60: 1183.657588 | J60: 1380.933852 | K60: 1578.210117 | L60: 1775.486381 | M60: 1972.762646 | N60: 2170.038911 | O60: 2367.315175 | P60: 2564.59144 | Q60: 2761.867704 | R60: 2959.143969 | S60: 3156.420233 | T60: 3353.696498 | U60: 3550.972763 | V60: 3748.249027 | W60: 3945.525292 | X60: 1 | Y60: Calculated
A61: ZONING: Inholding Lands | B61: Units | C61: 0 | D61: 16.52672041 | E61: 33.05344082 | F61: 49.58016122 | G61: 66.10688163 | H61: 82.63360204 | I61: 99.16032245 | J61: 115.6870429 | K61: 132.2137633 | L61: 148.7404837 | M61: 165.2672041 | N61: 181.7939245 | O61: 198.3206449 | P61: 214.8473653 | Q61: 231.3740857 | R61: 247.9008061 | S61: 264.4275265 | T61: 280.9542469 | U61: 297.4809673 | V61: 314.0076878 | W61: 330.5344082 | X61: 0.0837744999 | Y61: Mason County Plan 2036; Table 4 - Rural Land Capacity
A62: ZONING: Rural Residential 2.5 | B62: Units | C62: 0 | D62: 1.682169805 | E62: 3.36433961 | F62: 5.046509415 | G62: 6.728679221 | H62: 8.410849026 | I62: 10.09301883 | J62: 11.77518864 | K62: 13.45735844 | L62: 15.13952825 | M62: 16.82169805 | N62: 18.50386786 | O62: 20.18603766 | P62: 21.86820747 | Q62: 23.55037727 | R62: 25.23254708 | S62: 26.91471688 | T62: 28.59688669 | U62: 30.27905649 | V62: 31.9612263 | W62: 33.6433961 | X62: 0.008526975146 | Y62: Mason County Plan 2036; Table 4 - Rural Land Capacity
A63: ZONING: Rural Residential 5 | B63: Units | C63: 0 | D63: 109.1736176 | E63: 218.3472352 | F63: 327.5208528 | G63: 436.6944704 | H63: 545.868088 | I63: 655.0417056 | J63: 764.2153231 | K63: 873.3889407 | L63: 982.5625583 | M63: 1091.736176 | N63: 1200.909794 | O63: 1310.083411 | P63: 1419.257029 | Q63: 1528.430646 | R63: 1637.604264 | S63: 1746.777881 | T63: 1855.951499 | U63: 1965.125117 | V63: 2074.298734 | W63: 2183.472352 | X63: 0.5534047282 | Y63: Mason County Plan 2036; Table 4 - Rural Land Capacity
A64: ZONING: Rural Residential 10 | B64: Units | C64: 0 | D64: 26.28489975 | E64: 52.5697995 | F64: 78.85469926 | G64: 105.139599 | H64: 131.4244988 | I64: 157.7093985 | J64: 183.9942983 | K64: 210.279198 | L64: 236.5640978 | M64: 262.8489975 | N64: 289.1338973 | O64: 315.418797 | P64: 341.7036968 | Q64: 367.9885965 | R64: 394.2734963 | S64: 420.558396 | T64: 446.8432958 | U64: 473.1281955 | V64: 499.4130953 | W64: 525.697995 | X64: 0.1332390382 | Y64: Mason County Plan 2036; Table 4 - Rural Land Capacity
A65: ZONING: Rural Residential 20 | B65: Units | C65: 0 | D65: 43.20226623 | E65: 86.40453246 | F65: 129.6067987 | G65: 172.8090649 | H65: 216.0113311 | I65: 259.2135974 | J65: 302.4158636 | K65: 345.6181298 | L65: 388.8203961 | M65: 432.0226623 | N65: 475.2249285 | O65: 518.4271947 | P65: 561.629461 | Q65: 604.8317272 | R65: 648.0339934 | S65: 691.2362597 | T65: 734.4385259 | U65: 777.6407921 | V65: 820.8430583 | W65: 864.0453246 | X65: 0.2189937361 | Y65: Mason County Plan 2036; Table 4 - Rural Land Capacity
A66: ZONING: Agricultural Resource | B66: Units | C66: 0 | D66: 0 | E66: 0 | F66: 0 | G66: 0 | H66: 0 | I66: 0 | J66: 0 | K66: 0 | L66: 0 | M66: 0 | N66: 0 | O66: 0 | P66: 0 | Q66: 0 | R66: 0 | S66: 0 | T66: 0 | U66: 0 | V66: 0 | W66: 0 | X66: 0 | Y66: Mason County Plan 2036; Table 4 - Rural Land Capacity
A67: ZONING: Long Term Commercial Forest | B67: Units | C67: 0 | D67: 0 | E67: 0 | F67: 0 | G67: 0 | H67: 0 | I67: 0 | J67: 0 | K67: 0 | L67: 0 | M67: 0 | N67: 0 | O67: 0 | P67: 0 | Q67: 0 | R67: 0 | S67: 0 | T67: 0 | U67: 0 | V67: 0 | W67: 0 | X67: 0 | Y67: Mason County Plan 2036; Table 4 - Rural Land Capacity
A68: ZONING: Rural Tourist | B68: Units | C68: 0 | D68: 0 | E68: 0 | F68: 0 | G68: 0 | H68: 0 | I68: 0 | J68: 0 | K68: 0 | L68: 0 | M68: 0 | N68: 0 | O68: 0 | P68: 0 | Q68: 0 | R68: 0 | S68: 0 | T68: 0 | U68: 0 | V68: 0 | W68: 0 | X68: 0 | Y68: Mason County Plan 2036; Table 4 - Rural Land Capacity
A69: ZONING: Rural Tourist Campground | B69: Units | C69: 0 | D69: 0 | E69: 0 | F69: 0 | G69: 0 | H69: 0 | I69: 0 | J69: 0 | K69: 0 | L69: 0 | M69: 0 | N69: 0 | O69: 0 | P69: 0 | Q69: 0 | R69: 0 | S69: 0 | T69: 0 | U69: 0 | V69: 0 | W69: 0 | X69: 0 | Y69: Mason County Plan 2036; Table 4 - Rural Land Capacity
A70: ZONING: Rural Commercial 1 | B70: Units | C70: 0 | D70: 0 | E70: 0 | F70: 0 | G70: 0 | H70: 0 | I70: 0 | J70: 0 | K70: 0 | L70: 0 | M70: 0 | N70: 0 | O70: 0 | P70: 0 | Q70: 0 | R70: 0 | S70: 0 | T70: 0 | U70: 0 | V70: 0 | W70: 0 | X70: 0 | Y70: Mason County Plan 2036; Table 4 - Rural Land Capacity
A71: ZONING: Rural Commercial 2 | B71: Units | C71: 0 | D71: 0.1993092186 | E71: 0.3986184372 | F71: 0.5979276559 | G71: 0.7972368745 | H71: 0.9965460931 | I71: 1.195855312 | J71: 1.39516453 | K71: 1.594473749 | L71: 1.793782968 | M71: 1.993092186 | N71: 2.192401405 | O71: 2.391710623 | P71: 2.591019842 | Q71: 2.790329061 | R71: 2.989638279 | S71: 3.188947498 | T71: 3.388256717 | U71: 3.587565935 | V71: 3.786875154 | W71: 3.986184372 | X71: 0.001010305112 | Y71: Mason County Plan 2036; Table 4 - Rural Land Capacity
A72: ZONING: Rural Commercial 3 | B72: Units | C72: 0 | D72: 0.2072815874 | E72: 0.4145631747 | F72: 0.6218447621 | G72: 0.8291263495 | H72: 1.036407937 | I72: 1.243689524 | J72: 1.450971112 | K72: 1.658252699 | L72: 1.865534286 | M72: 2.072815874 | N72: 2.280097461 | O72: 2.487379048 | P72: 2.694660636 | Q72: 2.901942223 | R72: 3.10922381 | S72: 3.316505398 | T72: 3.523786985 | U72: 3.731068573 | V72: 3.93835016 | W72: 4.145631747 | X72: 0.001050717317 | Y72: Mason County Plan 2036; Table 4 - Rural Land Capacity
A73: ZONING: Rural Commercial 5 | B73: Units | C73: 0 | D73: 0 | E73: 0 | F73: 0 | G73: 0 | H73: 0 | I73: 0 | J73: 0 | K73: 0 | L73: 0 | M73: 0 | N73: 0 | O73: 0 | P73: 0 | Q73: 0 | R73: 0 | S73: 0 | T73: 0 | U73: 0 | V73: 0 | W73: 0 | X73: 0 | Y73: Mason County Plan 2036; Table 4 - Rural Land Capacity
A74: ZONING: Rural Industrial | B74: Units | C74: 0 | D74: 0 | E74: 0 | F74: 0 | G74: 0 | H74: 0 | I74: 0 | J74: 0 | K74: 0 | L74: 0 | M74: 0 | N74: 0 | O74: 0 | P74: 0 | Q74: 0 | R74: 0 | S74: 0 | T74: 0 | U74: 0 | V74: 0 | W74: 0 | X74: 0 | Y74: Mason County Plan 2036; Table 4 - Rural Land Capacity
A75: ZONING: Rural Natural Resource | B75: Units | C75: 0 | D75: 0 | E75: 0 | F75: 0 | G75: 0 | H75: 0 | I75: 0 | J75: 0 | K75: 0 | L75: 0 | M75: 0 | N75: 0 | O75: 0 | P75: 0 | Q75: 0 | R75: 0 | S75: 0 | T75: 0 | U75: 0 | V75: 0 | W75: 0 | X75: 0 | Y75: Mason County Plan 2036; Table 4 - Rural Land Capacity
A76: Population Per Household | B76: Pop./Unit | C76: 2.57 | D76: 2.57 | E76: 2.57 | F76: 2.57 | G76: 2.57 | H76: 2.57 | I76: 2.57 | J76: 2.57 | K76: 2.57 | L76: 2.57 | M76: 2.57 | N76: 2.57 | O76: 2.57 | P76: 2.57 | Q76: 2.57 | R76: 2.57 | S76: 2.57 | T76: 2.57 | U76: 2.57 | V76: 2.57 | W76: 2.57 | Y76: Provided to HDR
A77: Population Per Household Calculated from Plan Data | B77: Pop./Unit | C77: 1.704542125 | D77: 1.698231047 | E77: 1.692099644 | F77: 1.686140351 | G77: 1.680346021 | H77: 1.674709898 | I77: 1.669225589 | J77: 1.663887043 | K77: 1.658688525 | L77: 1.653624595 | M77: 1.648690096 | N77: 1.643880126 | O77: 1.639190031 | P77: 1.634615385 | Q77: 1.630151976 | R77: 1.625795796 | S77: 1.621543027 | T77: 1.617390029 | U77: 1.613333333 | V77: 1.609369628 | W77: 1.605495751 | Y77: Calculated

Sheet (King) WRIA 10 Assessment
A1: WRIA 10 - Puyallup-White
A3: WRIA (Ecology Coverage) | B3: (KC building permiting data)
B4: 2000-2009 | C4: 2010-2017 | E4: total | F4: permits per year | H4: % of county-wide total
A5: 10 | B5: 92 | C5: 8 | E5: 100 | F5: =E5/18 -> 5.555555556 | H5: =E5/5847 -> 0.01710278775
A7: WRIA 10 | B7: PE/yr | C7: 20 yr est | E7: Historic % | F7: pub | G7: =E17/E5 -> 0.23
A8: Future PE wells | B8: =F5*G8 -> 4.055555556 | C8: =B8*20 -> 81.11111111 | F8: pvt | G8: =E18/E5 -> 0.73
A11: District info | B11: 2000-2009 | C11: 2010-2017 | E11: total | G11: APD | H11: permits | I11: % of WRIA total
A12: total | B12: 92 | C12: 8 | E12: =B12+C12 -> 100 | G12: WRIA 10 | H12: =61+8 -> 69 | I12: =H12/E5 -> 0.69
A13: wtr dst | B13: 67 | C13: 7 | E13: =B13+C13 -> 74
A14: no dst | B14: 25 | C14: 1 | E14: =B14+C14 -> 26 | G14: FPD | H14: permits | I14: % of WRIA total
G15: WRIA 10 | H15: =4+0 -> 4 | I15: =H15/E5 -> 0.04
A16: Water service info | B16: (derived from KC parcel attribute data)
A17: pub | B17: 22 | C17: 1 | E17: =B17+C17 -> 23
A18: pvt | B18: 68 | C18: 5 | E18: =B18+C18 -> 73
A19: oth | B19: 2 | C19: 2 | E19: =B19+C19 -> 4
A20: total | B20: 92 | C20: 8 | E20: =B20+C20 -> 100
A22: Existing
A23: PE wells | B23: =B18 -> 68 | C23: =C18 -> 5 | E23: =B23+C23 -> 73
A25: error | B25: =B19/B12 -> 0.02173913043 | C25: =C19/C12 -> 0.25 | E25: =E19/E12 -> 0.04
A27: historic growth by KC stream basin
A29: WRIA 10 - Puyallup-White
A30: 7 basins in WRIA 10 within KC | B30: 70% of the area in rural King County
A32: total building permits | B32: 100
E33: Water use by basin
A34: Stream Basin | B34: Number of permits | C34: % of growth | E34: pub | F34: pvt | G34: oth | H34: %pub | I34: %pvt
A35: Mud Mountain* | B35: 100 | C35: =B35/B32 -> 1 | E35: 23 | F35: 73 | G35: 4 | H35: =E35/B35 -> 0.23 | I35: =F35/B35 -> 0.73
A36: Middle White | B36: 0 | C36: =B36/B32 -> 0
A37: Green Water Creek | B37: 0 | C37: =B37/B32 -> 0
A38: Browns Dash Point | B38: Urban
A39: Dumas Bay | B39: Urban
A40: Hylebos Creek | B40: Urban
A41: Lower White River | B41: Urban
A42: * = a portion (~15%) of this basin in the urban area
A44: total | B44: =SUM(B35:B37) -> 100 | C44: =SUM(C35:C37) -> 1 | E44: =SUM(E35:E37) -> 23 | F44: =SUM(F35:F37) -> 73 | G44: =SUM(G35:G37) -> 4 | H44: total | I44: =E44+F44+G44 -> 100

Sheet (King) WRIA 15 Assessment
A1: WRIA 15 - Vashon-Maury Island
A3: WRIA (Ecology Coverage) | B3: (KC building permiting data)
B4: 2000-2009 | C4: 2010-2017 | E4: total | F4: permits per year | H4: % of county-wide total
A5: 15 | B5: 497 | C5: 120 | E5: 617 | F5: =E5/18 -> 34.27777778 | H5: =E5/5847 -> 0.1055242004
A7: WRIA 15 | B7: PE/yr | C7: 20 yr est | E7: Historic % | F7: pub | G7: =E17/E5 -> 0.4294975689
A8: Future PE wells | B8: =F5*G8 -> 18.38888889 | C8: =B8*20 -> 367.7777778 | F8: pvt | G8: =E18/E5 -> 0.5364667747
A11: District info | B11: 2000-2009 | C11: 2010-2017 | E11: total | G11: Vashon Maury Island
A12: total | B12: 497 | C12: 120 | E12: =B12+C12 -> 617 | G12: does not have any APD or FPD
A13: wtr dst | B13: 297 | C13: 88 | E13: =B13+C13 -> 385
A14: no dst | B14: 200 | C14: 32 | E14: =B14+C14 -> 232
A16: Water service info | B16: (derived from KC parcel attribute data)
A17: pub | B17: 209 | C17: 56 | E17: =B17+C17 -> 265
A18: pvt | B18: 281 | C18: 50 | E18: =B18+C18 -> 331
A19: oth | B19: 7 | C19: 14 | E19: =B19+C19 -> 21
A20: total | B20: 497 | C20: 120 | E20: =B20+C20 -> 617
A22: Existing
A23: PE wells | B23: =B18 -> 281 | C23: =C18 -> 50 | E23: =B23+C23 -> 331
A25: error | B25: =B19/B12 -> 0.01408450704 | C25: =C19/C12 -> 0.1166666667 | E25: =E19/E12 -> 0.0340356564
A27: historic growth by KC stream basin
A29: WRIA 15 - Vashon-Maury Island
A30: 5 basins in WRIA 15 within KC | B30: 100% of the basins in rural King County
A32: total building permits | B32: 617
E33: Water use by basin
A34: Stream Basin | B34: Number of permits | C34: % of growth | E34: pub | F34: pvt | G34: oth | H34: %pub | I34: %pvt
A35: East Vashon | B35: 174 | C35: =B35/E$5 -> 0.2820097245 | E35: 118 | F35: 51 | G35: 5 | H35: =E35/B35 -> 0.6781609195 | I35: =F35/B35 -> 0.2931034483
A36: West Vashon | B36: 210 | C36: =B36/E$5 -> 0.340356564 | E36: 35 | F36: 168 | G36: 7 | H36: =E36/B36 -> 0.1666666667 | I36: =F36/B36 -> 0.8
A37: Shingle Mill Creek | B37: 39 | C37: =B37/E$5 -> 0.06320907618 | E37: 18 | F37: 17 | G37: 4 | H37: =E37/B37 -> 0.4615384615 | I37: =F37/B37 -> 0.4358974359
A38: Judd Creek | B38: 67 | C38: =B38/E$5 -> 0.1085899514 | E38: 33 | F38: 34 | G38: 0 | H38: =E38/B38 -> 0.4925373134 | I38: =F38/B38 -> 0.5074626866
A39: Maury Island | B39: 127 | C39: =B39/E$5 -> 0.205834684 | E39: 61 | F39: 61 | G39: 5 | H39: =E39/B39 -> 0.4803149606 | I39: =F39/B39 -> 0.4803149606
A41: total | B41: =SUM(B35:B39) -> 617 | C41: =SUM(C35:C39) -> 1 | E41: =SUM(E35:E39) -> 265 | F41: =SUM(F35:F39) -> 331 | G41: =SUM(G35:G39) -> 21 | H41: total | I41: =E41+F41+G41 -> 617

Sheet (Thurston) WRIA 13 ByWSysClass
B3: 2017 Total Dwelling Units | G3: DRAFT 2040 Total Dwelling Units
B5: Alterative 1 | C5: In A/B System | E5: Not in A/B System | G5: Alterative 1 | H5: In A/B System | J5: Not in A/B System
C6: Not Septic | D6: Septic | H6: Not Septic | I6: Septic
B7: Budd Inlet East | C7: 10523 | D7: 184 | E7: 630 | G7: Budd Inlet East | H7: 14063.65995 | I7: 281.4687515 | J7: 729.8572047
B8: Budd Inlet West | C8: 3894 | D8: 94 | E8: 176 | G8: Budd Inlet West | H8: 5223.073971 | I8: 213.7256896 | J8: 235.6285208
B9: Deschutes Lower | C9: 28011 | D9: 2019 | E9: 829 | G9: Deschutes Lower | H9: 36663.31566 | I9: 4758.15405 | J9: 1202.731766
B10: Deschutes Middle | C10: 1891 | E10: 1576 | G10: Deschutes Middle | H10: 2412.325146 | J10: 2359.030176
B11: Deschutes Upper | C11: 7 | E11: 79 | G11: Deschutes Upper | H11: 10.1353047 | J11: 110.9416503
B12: Eld Inlet | C12: 2736 | D12: 179 | E12: 677 | G12: Eld Inlet | H12: 3707.562523 | I12: 304.95916 | J12: 804.6291762
B13: Henderson West | C13: 4094 | D13: 356 | E13: 1112 | G13: Henderson West | H13: 5700.497843 | I13: 818.7354245 | J13: 1270.08226 | O13: In A/B System | Q13: Not in A/B System
B14: Johnson Point | C14: 2695 | D14: 384 | E14: 1097 | G14: Johnson Point | H14: 3094.891721 | I14: 384 | J14: 1548.305942 | O14: Not Septic | P14: Septic | S14: Combined on septic and not in A/B system
B15: McLane | C15: 273 | E15: 331 | G15: McLane | H15: 278.0692677 | J15: 509.3370353 | N15: Budd Inlett West | O15: 5223.073971 | P15: 213.7256896 | Q15: 235.6285208 | S15: 450
B16: Spurgeon Creek | C16: 252 | E16: 401 | G16: Spurgeon Creek | H16: 255.9232522 | J16: 497.2055477 | N16: Eld Inlet | O16: 3707.562523 | P16: 304.95916 | Q16: 804.6291762 | S16: 1110
B17: Woodland Creek | C17: 9628 | D17: 7540 | E17: 682 | G17: Woodland Creek | H17: 16497.8234 | I17: 10480.02056 | J17: 977.7609284 | N17: Cooper Point (Combined) | O17: 8930.636494 | P17: 518.6848496 | Q17: 1040.257697 | S17: 1560
B18: Total | C18: =SUM(C7:C17) -> 64004 | D18: =SUM(D7:D17) -> 10756 | E18: =SUM(E7:E17) -> 7590 | G18: Total | H18: =SUM(H7:H17) -> 87907.27803 | I18: =SUM(I7:I17) -> 17241.06363 | J18: =SUM(J7:J17) -> 10245.51021
O21: In A/B System | Q21: Not in A/B System
B22: 2017 Total Dwelling Units | G22: DRAFT 2040 Total Dwelling Units | O22: Not Septic | P22: Septic | S22: Combined on septic and not in A/B system
N23: Budd Inlet East | O23: 14063.65995 | P23: 281.4687515 | Q23: 729.8572047 | S23: 1011
B24: Alterative 2 | C24: In A/B System | E24: Not in A/B System | G24: Alterative 2 | H24: In A/B System | J24: Not in A/B System | N24: Henderson West | O24: 5700.497843 | P24: 818.7354245 | Q24: 1270.08226 | S24: 2089
C25: Not Septic | D25: Septic | H25: Not Septic | I25: Septic | N25: Boston Harbor (Combined) | O25: 19764.15779 | P25: 1100.204176 | Q25: 1999.939465 | S25: 3100
B26: Boston Harbor | C26: 14617 | D26: 540 | E26: 1742 | G26: Boston Harbor | H26: 19764.15779 | I26: 1100.204176 | J26: 1999.939465
B27: Cooper Point | C27: 6630 | D27: 273 | E27: 853 | G27: Cooper Point | H27: 8930.636494 | I27: 518.6848496 | J27: 1040.257697
B28: Deschutes Lower | C28: 28011 | D28: 2019 | E28: 829 | G28: Deschutes Lower | H28: 36663.31566 | I28: 4758.15405 | J28: 1202.731766
B29: Deschutes Middle | C29: 1891 | E29: 1576 | G29: Deschutes Middle | H29: 2412.325146 | J29: 2359.030176
B30: Deschutes Upper | C30: 7 | E30: 79 | G30: Deschutes Upper | H30: 10.1353047 | J30: 110.9416503
B31: Johnson Point | C31: 2695 | D31: 384 | E31: 1097 | G31: Johnson Point | H31: 3094.891721 | I31: 384 | J31: 1548.305942
B32: McLane | C32: 273 | E32: 331 | G32: McLane | H32: 278.0692677 | J32: 509.3370353
B33: Spurgeon Creek | C33: 252 | E33: 401 | G33: Spurgeon Creek | H33: 255.9232522 | J33: 497.2055477
B34: Woodland Creek | C34: 9628 | D34: 7540 | E34: 682 | G34: Woodland Creek | H34: 16497.8234 | I34: 10480.02056 | J34: 977.7609284
B35: Total | C35: =SUM(C25:C34) -> 64004 | D35: =SUM(D25:D34) -> 10756 | E35: =SUM(E25:E34) -> 7590 | G35: Total | H35: =SUM(H25:H34) -> 87907.27803 | I35: =SUM(I25:I34) -> 17241.06363 | J35: =SUM(J25:J34) -> 10245.51021
B38: Note:
B39: Water system boundaries provided by Dept of Health. Downloaded 6/19/2019
B40: Septic data provided by LOTT May/June 2019. Excludes parcels with both septic and sewer

Sheet (Thurston) WRIA 14 Basin Foreca
B2: Dwelling Unit Projections
B3: WRIA 14
B6: Harstine Is. | C6: 2017 | D6: 2040 | E6: Growth | G6: *Harstine Island subbasin includes Steamboat Island
B7: In A/B System | C7: 43 | D7: 43.36957686 | E7: 0.3695768613
B8: Not in A/B System | C8: 0 | D8: 0 | E8: 0
B10: Kennedy | C10: 2017 | D10: 2040 | E10: Growth
B11: In A/B System | C11: 1029 | D11: 1061.611566 | E11: 32.61156641
B12: Not in A/B System | C12: 2275 | D12: 2818.85466 | E12: 543.8546596
B14: Total | C14: 2017 | D14: 2040 | E14: Growth
B15: In A/B System | C15: =C7+C11 -> 1072 | D15: 1104.981143 | E15: 32.98114327
B16: Not in A/B System | C16: 2275 | D16: 2818.85466 | E16: 543.8546596
B20: Note:
B21: Water system boundaries provided by Dept of Health. Downloaded 6/19/2019

Sheet (Kitsap) Sheet1
A3: Row Labels | B3: Count of Permit_Num | E3: Subbasin Share of Historic Building Permits (4/2002-5/2019) | F3: Remaining Buildout Capacity (DU) | G3: Remaining Buildout Capacity Share within Subbasins (% DU) | H3: Remaining Buildout Capacity (population) | I3: 20-year Growth Target Distribution across Subbasin (Population) | J3: 20-year Growth Target Distributed by Subbasin (DU) | K3: 20-year Growth Target Distribution within Subbasins (DU) | L3: Estimated new wells / connections
A4: Hood Canal | B4: 1591 | D4: Hood Canal (Rural) | E4: =GETPIVOTDATA("Permit_Num",$A$3,"WRIA_15_NA","Hood Canal")/GETPIVOTDATA("Permit_Num",$A$3) -> 0.2730392998 | F4: =F5+F6 -> 3690 | H4: =(2.5*F4) -> 9225 | I4: =$I$30*E4 -> 3952.243865 | J4: =I4/2.5 -> 1580.897546 | K4: =SUM(K5:K6) -> 1580.897546
A5: Unincorporated Rural | B5: 1591 | D5: w/in 200 ' of water lines | F5: 1032 | G5: =F5/F4 -> 0.2796747967 | H5: =(2.5*F5) -> 2580 | K5: =J4*G5 -> 442.1371998
A6: MH-LOT | B6: 156 | D6: Further than 200' from water lines | F6: 2658 | G6: =F6/F4 -> 0.7203252033 | H6: =(2.5*F6) -> 6645 | K6: =J4*G6 -> 1138.760346 | L6: =K6 -> 1138.760346
A7: R-SFR | B7: 1419
A8: R-SFR/ADU | B8: 16
A9: South Sound | B9: 851 | D9: South Sound (Rural) | E9: =GETPIVOTDATA("Permit_Num",$A$3,"WRIA_15_NA","South Sound")/GETPIVOTDATA("Permit_Num",$A$3) -> 0.1460442766 | F9: =F10+F11 -> 1195 | H9: =(2.5*F9) -> 2987.5 | I9: =$I$30*E9 -> 2113.990904 | J9: =I9/2.5 -> 845.5963618 | K9: =SUM(K10:K11) -> 845.5963618
A10: Unincorporated Rural | B10: 851 | D10: w/in 200 ' of water lines | F10: 181 | G10: =F10/F9 -> 0.1514644351 | H10: =(2.5*F10) -> 452.5 | K10: =J9*G10 -> 128.0777753
A11: MH-LOT | B11: 116 | D11: Further than 200' from water lines | F11: 1014 | G11: =F11/F9 -> 0.8485355649 | H11: =(2.5*F11) -> 2535 | K11: =J9*G11 -> 717.5185865 | L11: =K11 -> 717.5185865
A12: MH-PARK | B12: 26
A13: R-SFR | B13: 700
A14: R-SFR/ADU | B14: 9
A15: West Sound | B15: 3385 | D15: West Sound (Rural) | E15: =GETPIVOTDATA("Permit_Num",$A$3,"WRIA_15_NA","West Sound")/GETPIVOTDATA("Permit_Num",$A$3) -> 0.5809164235 | F15: =F16+F17 -> 8310 | H15: =(2.5*F15) -> 20775 | I15: =$I$30*E15 -> 8408.765231 | J15: =I15/2.5 -> 3363.506092 | K15: =SUM(K16:K17) -> 3363.506092
A16: Keyport LAMIRD - Type I | B16: 14 | D16: w/in 200 ' of water lines | F16: 2578 | G16: =F16/F15 -> 0.3102286402 | H16: =(2.5*F16) -> 6445 | K16: =J15*G16 -> 1043.455921
A17: MH-LOT | B17: 2 | D17: Further than 200' from water lines | F17: 5732 | G17: =F17/F15 -> 0.6897713598 | H17: =(2.5*F17) -> 14330 | K17: =J15*G17 -> 2320.050171 | L17: =K17 -> 2320.050171
A18: R-SFR | B18: 11
A19: R-SFR/ADU | B19: 1
A20: Manchester LAMIRD - Type I | B20: 210 | D20: TOTALS (Rural) | E20: =E15+E9+E4 -> 1 | F20: =F21+F22 -> 13195 | H20: =H15+H9+H4 -> 32987.5 | I20: =I15+I9+I4 -> 14475 | J20: =J15+J9+J4 -> 5790 | K20: =K15+K9+K4 -> 5790
A21: MH-LOT | B21: 12 | D21: TOTAL w/in 200 ' of water lines | F21: =F5+F10+F16 -> 3791 | G21: =F21/F20 -> 0.2873057977 | H21: =H5+H10+H16 -> 9477.5 | K21: =K5+K10+K16 -> 1613.670896
A22: R-SFR | B22: 197 | D22: TOTAL Further than 200' from water lines | F22: =F6+F11+F17 -> 9404 | G22: =F22/F20 -> 0.7126942023 | H22: =H6+H11+H17 -> 23510 | K22: =K6+K11+K17 -> 4176.329104 | L22: =L6+L11+L17 -> 4176.329104
A23: R-SFR/ADU | B23: 1
A24: SKIA UGA | B24: 6
A25: MH-PARK | B25: 6 | D25: COBI (Urban) | E25: n/a | F25: n/a | G25: n/a | H25: n/a | I25: =I31 -> 4335 | J25: =I25/2.5 -> 1734 | K25: n/a | M25: 28660
A26: Suquamish LAMIRD - Type I | B26: 115 | D26: w/in 200 ' of water lines | E26: 0.7177 | F26: n/a | G26: n/a | H26: n/a | K26: n/a
A27: MH-LOT | B27: 15 | D27: Further than 200' from water lines | E27: 0.2822 | F27: 2590 | G27: n/a | H27: =F27*2.5 -> 6475 | K27: =J25*E27 -> 489.3348 | L27: =K27 -> 489.3348
A28: R-SFR | B28: 96
A29: R-SFR/ADU | B29: 4
A30: Unincorporated Rural | B30: 3040 | E30: Rural Population Growth Target (adj. to 2018-2038): | I30: 14475
A31: C-MULTI 3+ | B31: 7 | E31: COBI Population Growth Target (adj. to 2018-2038) | I31: 4335
A32: MH-LOT | B32: 252 | I32: Note: No basin is capacity limited during the 20-yr planning period, but South Sound would likely reach buildout in the next 20-year period | K32: Assumption: Future growth will be distributed within subbasins based on share of buildout capacity within the subbasin relative to distance from water line.
A33: MH-PARK | B33: 41
A34: R-SFR | B34: 2705
A35: R-SFR/ADU | B35: 35
A36: Grand Total | B36: 5827

Sheet (Pierce) Growth Rates
B1: Total Wells Through | F1: Total Well Added in Period | G1: Average Annual Wells Added in Period | H1: Total Growth of Wells Over Entire Period | I1: Annual Growth of Wells Over Entire Period | J1: Compound Annual Growth of Wells Over Entire Period | K1: Projected 2038 Total Wells | L1: Projected 2038 Total Wells Added Since 2018
A2: Drop List Value | B2: 1999 | C2: 2008 | D2: 2009 | E2: 2018 | F2: 1999-2018 | G2: 1999-2018 | H2: 1999-2018 | I2: 1999-2018 | J2: 1999-2018 | K2: Based on 1999-2018 Growth Rates | L2: Based on 1999-2018 Growth Rates
A3: All Well Data | B3: 7300 | C3: 9431 | D3: 9461 | E3: 10268 | F3: 2968 | G3: 156.2105263 | H3: 0.4065753425 | I3: 0.02139870224 | J3: 0.01811785213 | K3: 13392.21053 | L3: 3124.210526
A4: All WRIAs--All Subbasins | B4: 4100 | C4: 5216 | D4: 5235 | E4: 5744 | F4: 1644 | G4: 86.52631579 | H4: 0.4009756098 | I4: 0.02110397946 | J4: 0.01790412036 | K4: 7474.526316 | L4: 1730.526316
A5: WRIA 10--All Subbasins | B5: 1599 | C5: 1976 | D5: 1983 | E5: 2176 | F5: 577 | G5: 30.36842105 | H5: 0.3608505316 | I5: 0.01899213324 | J5: 0.01634850825 | K5: 2783.368421 | L5: 607.3684211
A6: WRIA 10--Lower White River | B6: 282 | C6: 312 | D6: 312 | E6: 331 | F6: 49 | G6: 2.578947368 | H6: 0.1737588652 | I6: 0.009145203434 | J6: 0.008467824831 | K6: 382.5789474 | L6: 51.57894737
A7: WRIA 10--Carbon River | B7: 271 | C7: 335 | D7: 336 | E7: 375 | F7: 104 | G7: 5.473684211 | H7: 0.3837638376 | I7: 0.02019809672 | J7: 0.01724207378 | K7: 484.4736842 | L7: 109.4736842
A8: WRIA 10--South Prairie Creek | B8: 314 | C8: 417 | D8: 418 | E8: 473 | F8: 159 | G8: 8.368421053 | H8: 0.5063694268 | I8: 0.02665102246 | J8: 0.02179745208 | K8: 640.3684211 | L8: 167.3684211
A9: WRIA 10--Upper Puyallup River | B9: 397 | C9: 506 | D9: 507 | E9: 554 | F9: 157 | G9: 8.263157895 | H9: 0.395465995 | I9: 0.02081399973 | J9: 0.01769303686 | K9: 719.2631579 | L9: 165.2631579
A10: WRIA 10--Upper White River | B10: 16 | C10: 18 | D10: 18 | E10: 27 | F10: 11 | G10: 0.5789473684 | H10: 0.6875 | I10: 0.03618421053 | J10: 0.02792208976 | K10: 38.57894737 | L10: 11.57894737
A11: WRIA 10--Middle White River | B11: 0 | C11: 0 | D11: 0 | E11: 0 | F11: 0 | G11: 0 | H11: -- | I11: -- | J11: -- | K11: 0 | L11: 0
A12: WRIA 10--Lower Puyallup River | B12: 319 | C12: 388 | D12: 392 | E12: 416 | F12: 97 | G12: 5.105263158 | H12: 0.3040752351 | I12: 0.01600395974 | J12: 0.01407146066 | K12: 518.1052632 | L12: 102.1052632
A13: WRIA 12--All Subbasins | B13: 586 | C13: 688 | D13: 689 | E13: 724 | F13: 138 | G13: 7.263157895 | H13: 0.2354948805 | I13: 0.0123944674 | J13: 0.01119225418 | K13: 869.2631579 | L13: 145.2631579
A14: WRIA 12--Clover Creek | B14: 548 | C14: 647 | D14: 648 | E14: 682 | F14: 134 | G14: 7.052631579 | H14: 0.2445255474 | I14: 0.01286976566 | J14: 0.01157992209 | K14: 823.0526316 | L14: 141.0526316
A15: WRIA 12--Sequalitchew | B15: 10 | C15: 10 | D15: 10 | E15: 10 | F15: 0 | G15: 0 | H15: 0 | I15: 0 | J15: 0 | K15: 10 | L15: 0
A16: WRIA 12--Chambers | B16: 28 | C16: 31 | D16: 31 | E16: 32 | F16: 4 | G16: 0.2105263158 | H16: 0.1428571429 | I16: 0.007518796992 | J16: 0.007052722157 | K16: 36.21052632 | L16: 4.210526316
A17: WRIA 14--All Subbasins | B17: 0 | C17: 0 | D17: 0 | E17: 0 | F17: 0 | G17: 0 | H17: -- | I17: -- | J17: -- | K17: 0 | L17: 0
A18: WRIA 14--Hood | B18: 0 | C18: 0 | D18: 0 | E18: 0 | F18: 0 | G18: 0 | H18: -- | I18: -- | J18: -- | K18: 0 | L18: 0
A19: WRIA 14--Kennedy | B19: 0 | C19: 0 | D19: 0 | E19: 0 | F19: 0 | G19: 0 | H19: -- | I19: -- | J19: -- | K19: 0 | L19: 0
A20: WRIA 14--Skookum | B20: 0 | C20: 0 | D20: 0 | E20: 0 | F20: 0 | G20: 0 | H20: -- | I20: -- | J20: -- | K20: 0 | L20: 0
A21: WRIA 14--Harstine | B21: 0 | C21: 0 | D21: 0 | E21: 0 | F21: 0 | G21: 0 | H21: -- | I21: -- | J21: -- | K21: 0 | L21: 0
A22: WRIA 14--Case | B22: 0 | C22: 0 | D22: 0 | E22: 0 | F22: 0 | G22: 0 | H22: -- | I22: -- | J22: -- | K22: 0 | L22: 0
A23: WRIA 14--Goldsborough | B23: 0 | C23: 0 | D23: 0 | E23: 0 | F23: 0 | G23: 0 | H23: -- | I23: -- | J23: -- | K23: 0 | L23: 0
A24: WRIA 14--Mill | B24: 0 | C24: 0 | D24: 0 | E24: 0 | F24: 0 | G24: 0 | H24: -- | I24: -- | J24: -- | K24: 0 | L24: 0
A25: WRIA 14--Oakland | B25: 0 | C25: 0 | D25: 0 | E25: 0 | F25: 0 | G25: 0 | H25: -- | I25: -- | J25: -- | K25: 0 | L25: 0
A26: WRIA 15--All Subbasins | B26: 1915 | C26: 2552 | D26: 2563 | E26: 2844 | F26: 929 | G26: 48.89473684 | H26: 0.4851174935 | I26: 0.02553249966 | J26: 0.02103362073 | K26: 3821.894737 | L26: 977.8947368
A27: WRIA 15--Hood Canal | B27: 0 | C27: 0 | D27: 0 | E27: 0 | F27: 0 | G27: 0 | H27: -- | I27: -- | J27: -- | K27: 0 | L27: 0
A28: WRIA 15--McNeil Island, Anderson Island, Ketron Island | B28: 135 | C28: 160 | D28: 161 | E28: 171 | F28: 36 | G28: 1.894736842 | H28: 0.2666666667 | I28: 0.01403508772 | J28: 0.01251923225 | K28: 208.8947368 | L28: 37.89473684
A29: WRIA 15--Bainbridge Island | B29: 0 | C29: 0 | D29: 0 | E29: 0 | F29: 0 | G29: 0 | H29: -- | I29: -- | J29: -- | K29: 0 | L29: 0
A30: WRIA 15--South Sound | B30: 1780 | C30: 2392 | D30: 2402 | E30: 2673 | F30: 893 | G30: 47 | H30: 0.5016853933 | I30: 0.02640449438 | J30: 0.02162998084 | K30: 3613 | L30: 940
A31: WRIA 15--West Sound | B31: 0 | C31: 0 | D31: 0 | E31: 0 | F31: 0 | G31: 0 | H31: -- | I31: -- | J31: -- | K31: 0 | L31: 0
A32: WRIA 15--Vashon - Maury Island | B32: 0 | C32: 0 | D32: 0 | E32: 0 | F32: 0 | G32: 0 | H32: -- | I32: -- | J32: -- | K32: 0 | L32: 0
